Cogmind - Beta 13 @@@ ROGUE MODE // 2024.03.31 @ 17:22:29 Player: Walrus Result: Destroyed by G-47 Trooper with Particle Gun Performance ------------- Evolutions (2) 1000 Regions Visited (3) 600 Robots Destroyed (59) 295 Value Destroyed (1698) 1698 Prototype IDs (1) 20 Alien Tech Used (0) 0 Bonus (59) 59 TOTAL SCORE: 3672 Bonus ------- High Alert Combat Kills 59 Cogmind --------- Core Integrity 0/550 Matter 257/300 Energy 99/100 System Corruption 2% Temperature Cool (36) Movement Core (200) Ox3 Location -8/Materials Parts ------- > --- POWER (2) -------- (None) > --- PROPULSION (2) --- (None) > --- UTILITY (4) ------ Medium Storage Unit > --- WEAPON (3) ------- (None) > --- INVENTORY (10) --- Improved Sensor Array Improved Sensor Array Melee Analysis Suite Actuator Array Reaction Control System Rocket Launcher Peak State ------------ > --- POWER ------------ Heavy Ion Engine Light Nuclear Core > --- PROPULSION ------- Armored Treads Armored Treads > --- UTILITY ---------- Medium Storage Unit Advanced Weight Redist. System Visual Processing Unit Improved Light Armor Plating > --- WEAPON ----------- Autogun Assault Cannon Rocket Launcher > --- INVENTORY -------- Thermal Generator Melee Analysis Suite Actuator Array Reaction Control System Core Shielding Hardlight Generator Rocket Launcher Rocket Launcher [Rating: 30] Favorites ----------- Power Heavy Ion Engine Engine Heavy Ion Engine Power Core Light Nuclear Core Propulsion Armored Treads Treads Armored Treads Leg Aluminum Leg Utility Visual Processing Unit Device Advanced Weight Redist. System Storage Medium Storage Unit Processor Visual Processing Unit Protection Improved Light Armor Plating Weapon Rocket Launcher Energy Gun Particle Gun Ballistic Gun Autogun Ballistic Cannon Assault Cannon Launcher Rocket Launcher Build | -11 -10 -9 -8 ------- Run | Yrd Mat Mat Mat Slots Evolved 4 | . . 2 2 Power 1 | . . 1 . Propulsion . | . . . . Utility 2 | . . . 2 Weapon 1 | . . 1 . Parts Attached 33 | 5 4 14 10 Power 6 | 1 . 4 1 Engine 5 | 1 . 4 . Core 1 | . . . 1 Reactor . | . . . . Propulsion 4 | 2 . 2 . Treads 2 | . . 2 . Leg 2 | 2 . . . Wheel . | . . . . Hover . | . . . . Flight . | . . . . Utility 9 | . 2 3 4 Device 4 | . . 3 1 Storage 1 | . . . 1 Processor 2 | . 2 . . Hackware . | . . . . Protection 2 | . . . 2 Artifact . | . . . . Weapon 14 | 2 2 5 5 Energy Gun 4 | 1 . 1 2 Energy Cannon . | . . . . Ballistic Gun 2 | 1 . 1 . Ballistic Cannon 2 | . 1 . 1 Launcher 6 | . 1 3 2 Special Weapon . | . . . . Impact Weapon . | . . . . Slashing Weapon . | . . . . Piercing Weapon . | . . . . Special Melee Weapon . | . . . . Unidentified Prototypes 1 | . . 1 . Parts Lost 15 | . . 4 11 Power 3 | . . 2 1 Propulsion 2 | . . . 2 Utility 4 | . . 1 3 Weapon 6 | . . 1 5 Highest Loss Streak 8 | . . 3 8 To Critical Strikes . | . . . . Average Slot Usage (%) 88 | . 90 98 81 Engine 13 | . 14 20 7 Core 1 | . . . 3 Treads 14 | . . 20 14 Leg 4 | . 28 . . Device 8 | . . 10 8 Storage 4 | . . . 8 Processor 10 | . 19 11 7 Protection 4 | . . . 8 Energy Gun 1 | . . . 1 Ballistic Gun 6 | . 7 8 5 Ballistic Cannon 4 | . 6 2 5 Launcher 13 | . 13 21 9 Naked Turns . | . . . . Heaviest Build 38 | 6 9 26 38 Greatest Support 49 | 20 20 49 49 Greatest Overweight (x) 5 | . . 5 5 Average Overweight (x) . | . . . . Largest Inventory Capacity 10 | 5 5 5 10 Average Capacity 7 | 5 5 5 9 Most Carried 10 | 4 5 5 10 Average Carried 5 | 2 4 4 7 Final Capacity 10 | 5 5 5 10 Final Carried 6 | 4 4 2 6 Class Distribution -------------------- 35% | Skirmisher 34% | Bomber 28% | Mutant Dominant Class ---------------- Mutant | -10/Materials Skirmisher | -9/Materials Bomber | -8/Materials Resources | -11 -10 -9 -8 ----------- Run | Yrd Mat Mat Mat Matter Collected 1354 | 252 175 448 479 Remotely . | . . . . Salvage Created 1428 | 46 225 617 540 Parts 92 | 2 21 41 28 Haulers Intercepted 2 | . . 1 1 Recyclers Shooed . | . . . . Parts Field Recycled . | . . . . Retrieved Matter . | . . . . Parts Self-Destructed . | . . . . Prevented . | . . . . Kills | -11 -10 -9 -8 ------- Run | Yrd Mat Mat Mat Combat Hostiles Destroyed 42 | 1 7 19 15 Melee 6 | . . 1 5 Guns 9 | 1 . 6 2 Cannons 3 | . 1 . 2 AOE 24 | . 6 12 6 Classes Destroyed 10 | 1 4 3 2 Worker 1 | . . . 1 Builder 3 | . . 3 . Tunneler 2 | . 1 . 1 Hauler 2 | . . 1 1 Recycler 2 | . 1 1 . Watcher 7 | . 3 2 2 Swarmer 7 | . 3 4 . Grunt 30 | 1 4 13 12 Brawler 1 | . . . 1 Sentry 4 | . . 2 2 Best Kill Streak 4 | 1 4 4 4 Combat Bots Only 4 | 1 3 4 3 Max Kills in Single Turn 3 | 1 3 3 2 Gunslinging . | . . . . Exploded 3 | . 2 3 2 Melee 1 | . . 1 1 Uniques/NPCs Destroyed . | . . . . Combat | -11 -10 -9 -8 -------- Run | Yrd Mat Mat Mat Hostile Shots Fired 241 | 3 15 58 165 Missed 69 | 3 7 15 44 Damage Taken 2999 | . 162 897 1940 Core 783 | . 50 177 556 Absorbed by Shields . | . . . . Redirected to Shielding 2 | . . . 2 Core Remaining (%) 78 | 100 80 55 . Volleys Fired 117 | 2 15 45 55 Largest 3 | 2 2 3 3 Hottest 109 | 70 65 89 109 Shots Fired 190 | 4 21 78 87 Gun 93 | 4 4 42 43 Cannon 37 | . 7 . 30 Launcher 60 | . 10 36 14 Special . | . . . . Kinetic 108 | 2 11 42 53 Thermal 22 | 2 . . 20 Explosive 60 | . 10 36 14 Electromagnetic . | . . . . Robot Hit Streak 8 | 2 2 6 8 Robot Miss Streak 7 | 2 4 7 4 Penetration Max . | . . . . Secondary Targets . | . . . . Shots Hit Robots 81 | 2 7 36 36 Core Hits 104 | 2 16 39 47 Critical Kills . | . . . . Critical Parts Destroyed 1 | . . 1 . Critical Strikes 1 | . . 1 . Destroy 1 | . . 1 . Melee Attacks . | . . . . Impact . | . . . . Slashing . | . . . . Piercing . | . . . . Sneak Attacks . | . . . . Combat Hostiles . | . . . . Follow-up Attacks . | . . . . Damage Inflicted 4314 | 19 533 1844 1918 Guns 720 | 19 . 401 300 Cannons 397 | . 35 . 362 Explosions 3049 | . 498 1427 1124 Melee . | . . . . Ramming 148 | . . 16 132 Kinetic 961 | 6 35 401 519 Thermal 156 | 13 . . 143 Explosive 3049 | . 498 1427 1124 Electromagnetic . | . . . . Impact . | . . . . Slashing . | . . . . Piercing . | . . . . Highest Corruption 8 | . 1 8 2 Average Corruption 2 | . 1 8 2 Corruption Purged . | . . . . Corruption Blocked . | . . . . Effects 13 | . 3 6 4 Message Errors 2 | . . 2 . Matter Fused 3 | . 1 2 . Heat Flow Errors 3 | . 1 . 2 Energy Discharges 1 | . 1 . . Parts Rejected 1 | . . . 1 Data Loss (major) 1 | . . 1 . Alerts 1 | . . 1 . Weapon Failures 1 | . . . 1 Overload Shots . | . . . . Overflow Damage 61 | . 30 10 21 Projectiles . | . . . . Explosions 61 | . 30 10 21 Melee . | . . . . Knockbacks 3 | . . . 3 Impact 1 | . . . 1 Kinetic 2 | . . . 2 Secondary . | . . . . Self-Inflicted Damage 222 | . 89 71 62 Shots 8 | . 3 2 3 Rammed 54 | . . 7 47 Targets Rammed 57 | . . 8 49 Kicked . | . . . . Crushed 3 | . . 1 2 Highest Temperature 337 | 40 234 108 337 Average Temperature 60 | 20 61 29 79 Received Heat Transfer 1227 | . 6 213 1008 Effects 2 | . . . 2 Interference 2 | . . . 2 Siege Activations . | . . . . Robots Corrupted . | . . . . Combat Hostiles . | . . . . Parts Fried . | . . . . Impact Corruptions 1 | . . . 1 Robots Melted . | . . . . Combat Hostiles . | . . . . Parts Melted . | . . . . Heat Transferred 370 | 37 . . 333 Parts Sabotaged . | . . . . Parts Stolen . | . . . . Parts Stripped . | . . . . Power Chain Reactions . | . . . . Alert | -11 -10 -9 -8 ------- Run | Yrd Mat Mat Mat Peak Influence 657 | 20 258 657 287 Initial 277 | . 13 68 277 Average 165 | 4 117 200 164 Maximum Alert Level 2 | . 1 2 1 Low Security (%) 75 | 100 95 71 71 Level 1 18 | . 4 10 28 Level 2 6 | . . 18 . Level 3 . | . . . . Level 4 . | . . . . Level 5 . | . . . . High Security . | . . . . Max Security . | . . . . Squads Dispatched 11 | . 1 5 5 Investigation 5 | . 1 1 3 Extermination . | . . . . Reinforcement 6 | . . 4 2 Assault . | . . . . Garrison . | . . . . Intercept . | . . . . Searches Triggered . | . . . . Construction Impeded 3 | . . 2 1 Haulers Reinforced . | . . . . Active Scanning Responses . | . . . . Cargo Convoy Interrupts . | . . . . Stealth | -11 -10 -9 -8 --------- Run | Yrd Mat Mat Mat Distress Signals 6 | . . 4 2 Communications Jammed . | . . . . Distress Signals . | . . . . Times Spotted 67 | 1 13 26 27 Peak Tracking Total 4 | 1 3 4 4 Tactical Retreats 2 | . 1 1 . Traps | -11 -10 -9 -8 ------- Run | Yrd Mat Mat Mat Traps Triggered 1 | . 1 . . Indirectly . | . . . . Trap Hack Attempts . | . . . . Triggered . | . . . . Disarmed . | . . . . Reprogrammed . | . . . . Reused . | . . . . Traps Extracted . | . . . . Installed . | . . . . Triggered . | . . . . Machines | -11 -10 -9 -8 ---------- Run | Yrd Mat Mat Mat Machines Disabled 6 | . 1 4 1 Max in Single Turn 2 | . 1 2 1 Machines Repaired . | . . . . Machines Dismantled . | . . . . Machines Sabotaged . | . . . . Overloaded Fab Kills . | . . . . Hacking | -11 -10 -9 -8 --------- Run | Yrd Mat Mat Mat Machines Accessed 7 | . 2 1 4 Terminals 5 | . 1 1 3 Fabricators . | . . . . Repair Stations . | . . . . Recycling Units 1 | . 1 . . Scanalyzers 1 | . . . 1 Garrison Access . | . . . . Total Hacks 34 | . 17 4 13 Successful 21 | . 10 3 8 Failed 13 | . 7 1 5 Catastrophic . | . . . . Database Lockouts . | . . . . Manual 1 | . . . 1 Terminals 21 | . 8 4 9 Fabricators . | . . . . Repair Stations . | . . . . Recycling Units 9 | . 9 . . Scanalyzers 4 | . . . 4 Garrison Access . | . . . . Terminal Hacks 12 | . 4 3 5 Record 7 | . 4 . 3 Alert Level 1 | . . 1 . Unreport Threat 1 | . . . 1 Dispatch Records 1 | . . 1 . Recall Investigation 1 | . . . 1 Zone Layout 1 | . . 1 . Fabricator Hacks . | . . . . Repair Station Hacks . | . . . . Recycling Unit Hacks 6 | . 6 . . Recycle Component 1 | . 1 . . Process 2 | . 2 . . Report Inventory 1 | . 1 . . Retrieve Matter 2 | . 2 . . Scanalyzer 3 | . . . 3 Insert Component 1 | . . . 1 Analyze 2 | . . . 2 Garrison Access Hacks . | . . . . Unauthorized Hacks . | . . . . Terminals . | . . . . Fabricators . | . . . . Repair Stations . | . . . . Recycling Units . | . . . . Scanalyzers . | . . . . Garrison Access . | . . . . Data Cores Recovered . | . . . . Used . | . . . . Hacking Detections 7 | . 2 1 4 Full Trace Events 6 | . 2 1 3 Feedback Events . | . . . . Feedback Blocked . | . . . . Robot Schematics Acquired . | . . . . Robots Built . | . . . . Authchips . | . . . . Time . | . . . . Total Robot Build Rating . | . . . . Part Schematics Acquired 1 | . . . 1 Parts Built . | . . . . Authchips . | . . . . Time . | . . . . Total Part Build Rating . | . . . . Parts Repaired . | . . . . Time . | . . . . Parts Recycled 1 | . 1 . . Recycled Matter 40 | . 40 . . Retrieved Matter 5 | . 5 . . Retrieved Components . | . . . . Parts Scanalyzed 1 | . . . 1 Part Schematics Acquired 1 | . . . 1 Parts Damaged . | . . . . Bothacking | -11 -10 -9 -8 ------------ Run | Yrd Mat Mat Mat Used RIF Installer . | . . . . Robots Hacked . | . . . . Non-combat . | . . . . Combat . | . . . . Robot Hacks Applied . | . . . . Relay Couplers Released . | . . . . Fabnet Peak Effective % . | . . . . Robots Rewired . | . . . . Allies Hacked . | . . . . Hacks Repelled . | . . . . Allies | -11 -10 -9 -8 -------- Run | Yrd Mat Mat Mat Total Allies . | . . . . Largest Group . | . . . . Highest-Rated Group . | . . . . Highest-Rated Ally . | . . . . Total Orders . | . . . . Ally Attacks . | . . . . Total Damage . | . . . . Kills . | . . . . Allies Corrupted . | . . . . Allies Melted . | . . . . Intel | -11 -10 -9 -8 ------- Run | Yrd Mat Mat Mat Robot Analysis Total . | . . . . Derelict Logs Recovered . | . . . . Drone Launches . | . . . . Drone Recoveries . | . . . . Exploration | -11 -10 -9 -8 ------------- Run | Yrd Mat Mat Mat Turns Passed 3178 | 104 437 1108 1529 Spaces Moved 1654 | 88 325 568 673 Core 97 | 30 . 4 63 Treads 1139 | . . 529 610 Legs 418 | 58 325 35 . Wheels . | . . . . Hover . | . . . . Flight . | . . . . Fastest Speed 50 | 50 120 120 50 Average Speed 159 | 96 120 167 180 Slowest Speed 300 | 120 120 300 300 Overloaded Moves . | . . . . Propulsion Burnouts . | . . . . Robots Hopped . | . . . . Cave-ins Triggered 1 | . . 1 . Exploration Rate (%) 22 | 8 26 30 24 Regions Visited 3 Branch Regions . Pre-discovered Areas . | . . . . Known Exits Taken . | . . . . Unknown Exits Taken 3 | 1 1 1 . Scrap Searched . | . . . . Spaces Dug . | . . . . Terrain Destroyed 466 | . 73 281 112 Melee . | . . . . Projectile 9 | . . . 9 AOE 457 | . 73 281 103 Terrain Rammed . | . . . . Walls Destroyed . | . . . . Machines Disabled . | . . . . Actions | -11 -10 -9 -8 --------- Run | Yrd Mat Mat Mat Total 2000 | 104 354 661 881 Wait 81 | 1 . 5 75 Move 1651 | 87 324 567 673 Hop . | . . . . Pick Up 41 | 9 7 12 13 Fast Attach . | . . . . Attach 30 | 5 4 12 9 Detach 3 | . . 1 2 Swap 3 | . . 2 1 Drop 17 | . 4 9 4 Fire 117 | 2 15 45 55 Melee . | . . . . Ram 14 | . . . 14 Kick . | . . . . Crush 43 | . . 8 35 Escape Stasis . | . . . . Rewire . | . . . . Trap . | . . . . Miscellaneous . | . . . . Route ------- -11/Scrapyard -10/Materials -9/Materials -8/Materials History --------- Turn | Location | Event 2 | -11/Scrapyard | Met Revision 17 74 | -11/Scrapyard | Discovered new exit (range 8) 105 | -11/Scrapyard | Entered Materials 311 | -10/Materials | Build established: Mutant 535 | -10/Materials | Discovered new exit (range 5) 542 | -10/Materials | Entered another Materials area 542 | -9/Materials | Evolved 2 slots: Power x1, Weapon x1 896 | -9/Materials | Build established: Skirmisher 1523 | -9/Materials | Crushed by falling debris 1554 | -9/Materials | Lost 3 parts (1p1u1w) 1592 | -9/Materials | Discovered new exit (range 15) 1650 | -9/Materials | Entered another Materials area 1650 | -8/Materials | Evolved 2 slots: Utility x2 2001 | -8/Materials | Build established: Bomber 2966 | -8/Materials | Lost 8 parts (1p2n2u3w) 3151 | -8/Materials | Core integrity fell below 50% 3168 | -8/Materials | Core integrity fell below 20% 3179 | -8/Materials | Destroyed by G-47 Trooper with Particle Gun Last Messages --------------- Scan incomplete, additional scanning required. >>Scanalyze Scanning: Actuator Array... Schematic downloaded. ALERT: Suspicious activity at Scanalyzer M002. Dispatching Investigation squad. Schematics can be used at fabricators to build something. View all schematics in possession via the status screen. System corrupted: Core Shielding rejected. System corrupted: Field Laser failed to cycle. Slammed into G-47 Trooper. Hardlight Generator destroyed. System corrupted: Heat flow error (+204). Field Laser destroyed. System corrupted: Heat flow error (+195). Slammed into G-47 Trooper. R-06 Scavenger collects Core Shielding. Critical hit (Burn: +37). [Achievement: First Step to Greatness] Map ----- +----------------------------------------------------+ | ?????????????????????????????????????? | | ?????????????????????????????????????? | | ?????????????????????????????????????? | | ?????????????????????????????????????? | | ?????????????????????????????????????? | | ?????????????????????????????????????? | | ?????????????????????????????????????? | | ?????????????????????????????????????? | | ?????????????????????????????????????? | | ?????????????????????????????????????? | | ?????????????????????????????????????? | | ?????????????????????????????????????? | | ?????????????????????????????????????? | | ?????????????????????????????????????? | | ?????????????????????????????????????? | | ?????????????????????????????????????? | | ?????????????????????????????????????? | | ?????????????????????????????????????? | | ??????????????????????##?????????????? | | ????????????????????### #????????????? | | ????????????????????# #???????????? | | ????????????????????# #####??????? | | ????????????????????# #??????? | | ????????????????##??# ###????? | | ?????# [######################????? | | ?????# kuu rrg@ ##???? | | ?????# #############gg ##???? | | ?????????????????????# # #####? | | ?????????????????????# # # #? | | ?????????????????????### ### #? | | ??????????????????????##" ##???? | | ??????????????????????## #????? | | ??????????????????????##" ###??? | | ???????????????????????# # #??? | | ???????????????????#########+######### | | ???????????????????# # + # | | ???????????????????#! "" # # # | | ???????????????????# """ + + !! # | | ???????????????????# S" # # !! !# | | ???????????????????#! # # ! # | | ???????????????????#! # # # | | ???????????????????# ###### ######## | | ???????????????????##?????# #??????? | | ??????????????????????????# #??##### | | ??????????????????????????# #? # | | ??????????????????????????# # # | | ??????????????????????????# # # | | ??????????????????????????# + # | | ????????????????########??# # # | | ??????# ????????# ##### # # | +----------------------------------------------------+ Best States ------------- Heat Dissipation 31 Energy Generation 23 Energy Capacity 430 Matter Stores 300 Matter Capacity 300 Sight Range 18 Terrain Scan Density 10 Additional Mass Support 9 Armor Coverage 150 Core Shielding 20 Evasion (%) 55 Recoil Reduction 2 Item Schematics ----------------- Actuator Array | -8/Materials | Scanalyzed Robot Schematics ------------------ None Fabricated ------------ Nothing Alien Tech Used ----------------- None Achievements -------------- Dramatic Entrance Everything Is Under Control First Step to Greatness Fist Fight Loot Pinata One Hack Too Far Oops Remodeling Risk Taker Storm Trooper Uninvited Guest Unlikely Earthworm Challenges ------------ None Game ------ Seed CommTargetStick Manual? 0 Play Time 00:43:59 Cumulative 0.6 hours Start 2024.03.31 @ 16:39:27 End 2024.03.31 @ 17:22:29 Sessions 1 Manual Loads 0 Difficulty Rogue Special Mode None Game No. 1 Rogue 1 Adventurer 0 Explorer 0 Win Type - Total 0 Types 0/0/0/0/0/0/0/0/0 Lore% 1 Gallery% 2 Achievement% 4 Wizard Run 0 Options --------- Layout 1 ASCII 0 Keyboard 0 Movement Arrows Keybinds 0 Fullscreen 1 Font 24/Smallcaps Map View 50x35 Zoom Use 0% Tactical HUD 0 Map Filters NONE Filters NONE Steam 1 RUN: 35fd1a84-8dad-4024-b8a1-ec6afd062121